Cogmind - Beta 11.1 @@@ ROGUE MODE // 2022.11.15 @ 13:51:01 Player: ok-primus Result: Destroyed by S-43 Plague with Heavy Machine Gun Performance ------------- Evolutions (7) 3500 Regions Visited (13) 2600 Robots Destroyed (36) 180 Value Destroyed (1069) 1069 Prototype IDs (8) 160 Alien Tech Used (0) 0 Bonus (860) 860 TOTAL SCORE: 8369 Bonus ------- Follower Combat Kills 60 Entered DSFs 500 Aligned with FarCom 300 Cogmind --------- Core Integrity 0/1300 Matter 17/300 Energy 100/100 System Corruption 6% Temperature Cool (0) Movement Flying (45) Location -3/Research Parts ------- > --- POWER (1) -------- (None) > --- PROPULSION (8) --- Impulse Thruster Array > --- UTILITY (9) ------ (None) > --- WEAPON (3) ------- Lance > --- INVENTORY (5) ---- Armored Huge Wheel Medium Storage Unit Skeleton Box Precision Grenade Launcher Peak State ------------ > --- POWER ------------ Angular Momentum Engine > --- PROPULSION ------- Aluminum Leg Aluminum Leg Aluminum Leg Carbon-fiber Leg Improved Titanium Leg > --- UTILITY ---------- Improved Heat Sink Improved Heat Sink Medium Storage Unit Advanced Targeting Computer ECM Suite Drone Bay > --- WEAPON ----------- Cooled Plasma Cannon Gauss Cannon Great Maul > --- INVENTORY -------- Light Nuclear Core Light Nuclear Core Armored Huge Wheel Nuclear Pulse Thruster Hardlight Generator Skeleton Box Gauss Cannon Precision Grenade Launcher Remote Datajack [Rating: 48] Favorites ----------- Power Ion Engine Engine Ion Engine Power Core Light Nuclear Core Propulsion Aluminum Leg Treads Advanced Treads Leg Aluminum Leg Wheel Wheel Hover Unit Improved Airjet Flight Unit Nuclear Pulse Array Utility Medium Storage Unit Device Improved Heat Sink Storage Medium Storage Unit Processor Improved Signal Interpreter Protection Light Armor Plating Weapon Assault Rifle Energy Gun Particle Gun Energy Cannon Cooled Plasma Cannon Ballistic Gun Assault Rifle Ballistic Cannon Gauss Cannon Launcher Precision Grenade Launcher Impact Weapon Great Maul Piercing Weapon Lance Build | -11 -10 -10 -10 -9 -8 -8 -7 -6 -5 -5 -4 -4 -3 ------- Run | Scr Mat Min Exi Min Mat Sto Fac Fac Fac DSF Fac Ext Res Slots Evolved 14 | . . . . . 4 . 2 2 2 . 2 . 2 Power . | . . . . . . . . . . . . . . Propulsion 6 | . . . . . 2 . 1 . 1 . 1 . 1 Utility 7 | . . . . . 2 . 1 1 1 . 1 . 1 Weapon 1 | . . . . . . . . 1 . . . . . Parts Attached 74 | 5 3 1 1 3 2 9 25 16 . 4 . . 5 Power 8 | 1 . 1 . 1 . . 2 1 . 1 . . 1 Engine 5 | 1 . 1 . 1 . . 1 1 . . . . . Core 3 | . . . . . . . 1 . . 1 . . 1 Reactor . | . . . . . . . . . . . . . . Propulsion 30 | 2 . . . 2 . . 10 10 . 3 . . 3 Treads 2 | . . . . . . . 1 . . . . . 1 Leg 8 | . . . . . . . 7 . . . . . 1 Wheel 2 | 2 . . . . . . . . . . . . . Hover 5 | . . . . . . . 2 3 . . . . . Flight 13 | . . . . 2 . . . 7 . 3 . . 1 Utility 23 | 1 2 . 1 . 1 8 7 3 . . . . . Device 15 | . . . 1 . . 7 5 2 . . . . . Storage 3 | 1 1 . . . . . 1 . . . . . . Processor 3 | . . . . . 1 . 1 1 . . . . . Hackware . | . . . . . . . . . . . . . . Protection 2 | . 1 . . . . 1 . . . . . . . Artifact . | . . . . . . . . . . . . . . Weapon 13 | 1 1 . . . 1 1 6 2 . . . . 1 Energy Gun 2 | . . . . . 1 . 1 . . . . . . Energy Cannon 1 | . . . . . . . 1 . . . . . . Ballistic Gun 2 | 1 1 . . . . . . . . . . . . Ballistic Cannon 1 | . . . . . . . 1 . . . . . . Launcher 2 | . . . . . . . 1 1 . . . . . Special Weapon . | . . . . . . . . . . . . . . Impact Weapon 4 | . . . . . . 1 2 1 . . . . . Slashing Weapon . | . . . . . . . . . . . . . . Piercing Weapon 1 | . . . . . . . . . . . . . 1 Special Melee Weapon . | . . . . . . . . . . . . . . Unidentified Prototypes 6 | . . . 1 . 1 . 3 . . . . . 1 Parts Lost 34 | . . . . 5 . 5 5 14 . . . 1 4 Power 4 | . . . . 1 . 1 . 1 . . . . 1 Propulsion 22 | . . . . 2 . 2 4 10 . . . 1 3 Utility 4 | . . . . . . 2 1 1 . . . . . Weapon 4 | . . . . 2 . . . 2 . . . . . Highest Loss Streak 11 | . . . . 5 . 4 3 11 . . . 1 4 To Critical Strikes . | . . . . . . . . . . . . . . Average Slot Usage (%) 71 | . 97 100 100 74 43 32 66 77 5 6 15 15 6 Engine 6 | . 14 14 14 14 9 5 . 3 . . . . . Core 1 | . . . . . . . 2 1 . 1 . . . Leg 10 | . . . . . . . 21 25 . . . . 1 Wheel 9 | . 28 28 28 10 . . . . . . . . . Flight 2 | . . . . 15 18 8 . 3 1 5 15 15 2 Device 9 | . . . 9 14 9 9 13 19 . . . . . Storage 7 | . 14 14 14 6 . . 5 4 . . . . . Processor 2 | . . . . . 7 7 4 2 1 . . . . Protection 3 | . 11 14 4 . . 1 . . . . . . . Energy Cannon 1 | . . . . . . . 3 4 . . . . . Ballistic Gun 9 | . 28 28 28 12 . . . . . . . . . Ballistic Cannon 1 | . . . . . . . 1 4 . . . . . Impact Weapon 1 | . . . . . . . 3 1 . . . . . Naked Turns 187 | . . . . . . 11 12 . 56 24 . . 84 Heaviest Build 52 | 12 22 22 22 21 7 12 34 52 . 10 . . 5 Greatest Support 65 | 20 20 20 20 20 8 8 65 65 6 39 39 39 26 Greatest Overweight (x) 3 | . 1 1 1 2 . 3 2 1 . 3 . . . Average Overweight (x) . | . . 1 1 . . . . . . . . . . Largest Inventory Capacity 10 | 8 10 10 10 10 5 5 10 10 5 5 5 5 5 Average Capacity 8 | 6 8 10 10 7 5 5 9 8 5 5 5 5 5 Most Carried 10 | 7 10 10 10 10 5 5 10 10 5 5 5 5 5 Average Carried 8 | 4 7 9 9 6 4 4 8 8 5 5 5 5 5 Final Capacity 10 | 8 10 10 10 5 5 5 10 5 5 5 5 5 5 Final Carried 10 | 7 10 10 10 4 5 5 10 5 5 5 5 5 5 Class Distribution -------------------- 69% | Mutant 26% | Scavenger-Mutant Dominant Class ---------------- Mutant | -10/Materials Mutant | -10/Mines Mutant | -10/Exiles Mutant | -9/Mines Mutant | -8/Materials Mutant | -8/Storage Mutant | -7/Factory Scavenger-Mutant | -6/Factory Mutant | -5/Factory Mutant | -5/DSF Mutant | -4/Factory Mutant | -4/Extension Mutant | -3/Research Resources | -11 -10 -10 -10 -9 -8 -8 -7 -6 -5 -5 -4 -4 -3 ----------- Run | Scr Mat Min Exi Min Mat Sto Fac Fac Fac DSF Fac Ext Res Matter Collected 892 | 144 144 224 . 10 . 11 266 58 30 5 . . . Remotely . | . . . . . . . . . . . . . . Salvage Created 983 | . 187 87 . . . . 553 126 30 . . . . Parts 69 | . 12 7 . . . . 32 17 1 . . . . Haulers Intercepted 1 | . 1 . . . . . . . . . . . . Recyclers Shooed 1 | . . . . . . 1 . . . . . . . Parts Field Recycled . | . . . . . . . . . . . . . . Retrieved Matter . | . . . . . . . . . . . . . . Parts Self-Destructed . | . . . . . . . . . . . . . . Prevented . | . . . . . . . . . . . . . . Kills | -11 -10 -10 -10 -9 -8 -8 -7 -6 -5 -5 -4 -4 -3 ------- Run | Scr Mat Min Exi Min Mat Sto Fac Fac Fac DSF Fac Ext Res Combat Hostiles Destroyed 26 | . 5 2 . . . . 13 6 . . . . . Guns 7 | . 5 2 . . . . . . . . . . . Cannons 14 | . . . . . . . 9 5 . . . . . AOE 4 | . . . . . . . 3 1 . . . . . Classes Destroyed 9 | . 3 . . . . . 5 1 . . . . . Worker 4 | . . . . . . . 2 1 1 . . . . Builder 2 | . . . . . . . 1 1 . . . . . Tunneler 1 | . . . . . . . 1 . . . . . . Hauler 1 | . 1 . . . . . . . . . . . . Watcher 2 | . . . . . . . 2 . . . . . . Swarmer 11 | . 3 . . . . . 4 4 . . . . . Grunt 12 | . 2 2 . . . . 8 . . . . . . Hunter 1 | . . . . . . . . 1 . . . . . Programmer 2 | . . . . . . . 1 1 . . . . . Best Kill Streak 7 | . 3 2 . . . . 7 4 1 . . . . Combat Bots Only 5 | . 3 2 . . . . 5 2 . . . . . Max Kills in Single Turn 3 | . 1 1 . . . . 3 1 1 . . . . Gunslinging . | . . . . . . . . . . . . . . Exploded 2 | . . . . . . . 2 1 . . . . . Melee . | . . . . . . . . . . . . . . Uniques/NPCs Destroyed . | . . . . . . . . . . . . . . Combat | -11 -10 -10 -10 -9 -8 -8 -7 -6 -5 -5 -4 -4 -3 -------- Run | Scr Mat Min Exi Min Mat Sto Fac Fac Fac DSF Fac Ext Res Damage Taken 7243 | . 150 43 . 507 14 688 1336 1535 19 459 123 238 2131 Core 3140 | . 20 . . 186 . 377 195 507 19 335 89 97 1315 Absorbed by Shields . | . . . . . . . . . . . . . . Core Remaining (%) 58 | 100 . . . 17 . 31 72 40 . 64 . 83 . Volleys Fired 86 | . 29 8 . . . . 28 21 . . . . . Largest 2 | . 2 2 . . . . 2 2 . . . . . Hottest 141 | . 40 40 . . . . 141 83 . . . . . Shots Fired 131 | . 58 16 . . . . 32 25 . . . . . Gun 77 | . 58 16 . . . . 3 . . . . . . Cannon 46 | . . . . . . . 23 23 . . . . . Launcher 8 | . . . . . . . 6 2 . . . . . Special . | . . . . . . . . . . . . . . Kinetic 93 | . 58 16 . . . . . 19 . . . . . Thermal 30 | . . . . . . . 26 4 . . . . . Explosive 8 | . . . . . . . 6 2 . . . . . Electromagnetic . | . . . . . . . . . . . . . . Robot Hit Streak 16 | . 10 9 . . . . 16 10 . . . . . Robot Miss Streak 3 | . 3 3 . . . . 1 2 . . . . . Penetration Max . | . . . . . . . . . . . . . . Secondary Targets . | . . . . . . . . . . . . . . Shots Hit Robots 92 | . 37 13 . . . . 26 16 . . . . . Core Hits 52 | . 11 5 . . . . 22 11 3 . . . . Critical Kills 1 | . . . . . . . 1 . . . . . . Critical Parts Destroyed 1 | . 1 . . . . . . . . . . . . Critical Strikes 3 | . 1 . . . . . 1 1 . . . . . Meltdown 1 | . . . . . . . 1 . . . . . . Destroy 1 | . 1 . . . . . . . . . . . . Blast 1 | . . . . . . . . 1 . . . . . Melee Attacks 15 | . . . . . . 2 6 4 . . . . 3 Impact 12 | . . . . . . 2 6 4 . . . . . Slashing . | . . . . . . . . . . . . . . Piercing 3 | . . . . . . . . . . . . . 3 Sneak Attacks 1 | . . . . . . . 1 . . . . . . Combat Hostiles . | . . . . . . . . . . . . . . Follow-up Attacks . | . . . . . . . . . . . . . . Damage Inflicted 2920 | . 452 155 . 6 . 34 1564 641 40 . . . 28 Guns 655 | . 452 155 . . . . 48 . . . . . . Cannons 1130 | . . . . . . . 768 362 . . . . . Explosions 928 | . . . . . . . 649 279 . . . . . Melee 99 | . . . . . . . 99 . . . . . . Ramming 108 | . . . . 6 . 34 . . 40 . . . 28 Kinetic 907 | . 452 155 . . . . . 300 . . . . . Thermal 1095 | . . . . . . . 816 279 . . . . . Explosive 711 | . . . . . . . 649 62 . . . . . Electromagnetic . | . . . . . . . . . . . . . . Impact 99 | . . . . . . . 99 . . . . . . Slashing . | . . . . . . . . . . . . . . Piercing . | . . . . . . . . . . . . . . Highest Corruption 6 | . . . . . . . 3 1 . . . . 6 Average Corruption 2 | . . . . . . . 2 1 . . . . 4 Corruption Purged . | . . . . . . . . . . . . . . Corruption Blocked . | . . . . . . . . . . . . . . Effects 16 | . . . . . . . 11 . . . . . 5 Message Errors 6 | . . . . . . . 5 . . . . . 1 Matter Fused 5 | . . . . . . . 4 . . . . . 1 Heat Flow Errors 1 | . . . . . . . 1 . . . . . . Energy Discharges 1 | . . . . . . . . . . . . . 1 Parts Rejected 1 | . . . . . . . . . . . . . 1 Data Loss (minor) 1 | . . . . . . . 1 . . . . . . Alerts 1 | . . . . . . . . . . . . . 1 Overload Shots 1 | . . . . . . . 1 . . . . . . Overflow Damage 211 | . . . . . . . 207 4 . . . . . Projectiles 95 | . . . . . . . 91 4 . . . . . Explosions 57 | . . . . . . . 57 . . . . . . Melee 59 | . . . . . . . 59 . . . . . . Knockbacks 1 | . . . . . . . . 1 . . . . . Impact . | . . . . . . . . . . . . . . Kinetic 1 | . . . . . . . . 1 . . . . . Secondary . | . . . . . . . . . . . . . . Self-Inflicted Damage 50 | . . . . 3 . 16 . . 19 . . . 12 Shots . | . . . . . . . . . . . . . . Rammed 27 | . . . . 1 . 7 . . 10 . . . 9 Targets Rammed 28 | . . . . 1 . 7 1 . 10 . . . 9 Kicked 1 | . . . . . . . 1 . . . . . . Crushed . | . . . . . . . . . . . . . . Highest Temperature 164 | . 10 2 . 21 . 10 164 12 . . . . . Average Temperature 13 | . 4 2 . 9 . 6 76 7 . . . . . Received Heat Transfer 1434 | . 72 24 . 138 9 279 468 384 . . 21 27 12 Siege Activations . | . . . . . . . . . . . . . . Robots Corrupted . | . . . . . . . . . . . . . . Combat Hostiles . | . . . . . . . . . . . . . . Parts Fried 3 | . . . . . . . 3 . . . . . . Impact Corruptions 2 | . . . . . . . 2 . . . . . . Robots Melted 1 | . . . . . . . 1 . . . . . . Combat Hostiles 1 | . . . . . . . 1 . . . . . . Parts Melted 6 | . . . . . . . 5 1 . . . . . Heat Transferred 1491 | . . . . . . . 1241 250 . . . . . Parts Sabotaged . | . . . . . . . . . . . . . . Parts Stolen . | . . . . . . . . . . . . . . Parts Stripped . | . . . . . . . . . . . . . . Power Chain Reactions . | . . . . . . . . . . . . . . Missiles Intercepted . | . . . . . . . . . . . . . . Alert | -11 -10 -10 -10 -9 -8 -8 -7 -6 -5 -5 -4 -4 -3 ------- Run | Scr Mat Min Exi Min Mat Sto Fac Fac Fac DSF Fac Ext Res Peak Influence 373 | . 141 105 . . 30 53 204 373 187 149 161 113 313 Initial 182 | . . 19 . . . 12 6 81 182 134 77 78 59 Average 86 | . 52 42 . . 7 25 102 110 183 135 100 82 158 Maximum Alert Level 1 | . . . . . . . 1 1 . . . . 1 Low Security (%) 93 | 100 100 100 . 100 100 100 98 82 100 100 100 100 67 Level 1 6 | . . . . . . . 1 17 . . . . 32 Level 2 . | . . . . . . . . . . . . . . Level 3 . | . . . . . . . . . . . . . . Level 4 . | . . . . . . . . . . . . . . Level 5 . | . . . . . . . . . . . . . . High Security . | . . . . . . . . . . . . . . Max Security . | . . . . . . . . . . . . . . Squads Dispatched 19 | . 1 1 . . 2 . 4 5 . 1 1 . 4 Investigation 7 | . . 1 . . 1 . 2 2 . . . . 1 Extermination 3 | . . . . . . . 1 2 . . . . . Reinforcement 9 | . 1 . . . 1 . 1 1 . 1 1 . 3 Assault . | . . . . . . . . . . . . . . Garrison . | . . . . . . . . . . . . . . Intercept . | . . . . . . . . . . . . . . Searches Triggered . | . . . . . . . . . . . . . . Construction Impeded 1 | . . . . . . . 1 . . . . . . Haulers Reinforced . | . . . . . . . . . . . . . . Active Scanning Responses . | . . . . . . . . . . . . . . Cargo Convoy Interrupts . | . . . . . . . . . . . . . . Stealth | -11 -10 -10 -10 -9 -8 -8 -7 -6 -5 -5 -4 -4 -3 --------- Run | Scr Mat Min Exi Min Mat Sto Fac Fac Fac DSF Fac Ext Res Distress Signals 4 | . . . . . . . . . . . . . 4 Communications Jammed . | . . . . . . . . . . . . . . Distress Signals . | . . . . . . . . . . . . . . Times Spotted 141 | . 12 4 . 18 3 8 27 25 . 2 7 4 31 Peak Tracking Total 16 | . 4 2 . 16 4 8 6 12 . 3 6 4 15 Tactical Retreats 22 | . 1 . . 2 . . 3 8 . 1 2 . 5 Traps | -11 -10 -10 -10 -9 -8 -8 -7 -6 -5 -5 -4 -4 -3 ------- Run | Scr Mat Min Exi Min Mat Sto Fac Fac Fac DSF Fac Ext Res Traps Triggered 3 | . . . . . . . . . 3 . . . . Indirectly . | . . . . . . . . . . . . . . Trap Hack Attempts . | . . . . . . . . . . . . . . Triggered . | . . . . . . . . . . . . . . Disarmed . | . . . . . . . . . . . . . . Reprogrammed . | . . . . . . . . . . . . . . Reused . | . . . . . . . . . . . . . . Traps Extracted . | . . . . . . . . . . . . . . Installed . | . . . . . . . . . . . . . . Triggered . | . . . . . . . . . . . . . . Exploded 1 | . . . . . . . . 1 . . . . . Machines | -11 -10 -10 -10 -9 -8 -8 -7 -6 -5 -5 -4 -4 -3 ---------- Run | Scr Mat Min Exi Min Mat Sto Fac Fac Fac DSF Fac Ext Res Machines Disabled 2 | . . . . . . . . 2 . . . . . Max in Single Turn 2 | . . . . . . . . 2 . . . . . Machines Sabotaged . | . . . . . . . . . . . . . . Garrisons Compromised . | . . . . . . . . . . . . . . Overloaded Fab Kills . | . . . . . . . . . . . . . . Hacking | -11 -10 -10 -10 -9 -8 -8 -7 -6 -5 -5 -4 -4 -3 --------- Run | Scr Mat Min Exi Min Mat Sto Fac Fac Fac DSF Fac Ext Res Machines Accessed 26 | . 2 1 1 . 2 3 6 6 1 . 2 1 1 Terminals 22 | . 2 . . . 2 3 6 4 1 . 2 1 1 Fabricators . | . . . . . . . . . . . . . . Repair Stations . | . . . . . . . . . . . . . . Recycling Units 1 | . . . . . . . . 1 . . . . . Scanalyzers 1 | . . . . . . . . 1 . . . . . Garrison Access . | . . . . . . . . . . . . . . Total Hacks 75 | . 8 1 9 . 7 8 12 21 1 . 2 4 2 Successful 34 | . 5 1 9 . 2 2 1 9 1 . 2 1 1 Failed 40 | . 3 . . . 5 6 11 11 . . . 3 1 Catastrophic 10 | . 1 . . . 2 2 3 1 . . . . 1 Database Lockouts 1 | . . . . . . . . 1 . . . . . Manual 25 | . 4 . 1 . 6 4 7 3 . . . . . Terminals 60 | . 8 . . . 7 8 12 16 1 . 2 4 2 Fabricators . | . . . . . . . . . . . . . . Repair Stations . | . . . . . . . . . . . . . . Recycling Units 3 | . . . . . . . . 3 . . . . . Scanalyzers 2 | . . . . . . . . 2 . . . . . Garrison Access . | . . . . . . . . . . . . . . Terminal Hacks 30 | . 5 1 9 . 2 2 1 5 1 . 2 1 1 Record 13 | . . . 9 . . . . 4 . . . . . Prototype ID Bank 1 | . 1 . . . . . . . . . . . . Open Door 4 | . . 1 . . . 1 . . . . 1 1 . Open DSF 3 | . . . . . . . 1 . 1 . 1 . . Level Access Points 3 | . . . . . . 1 . 1 . . . . 1 Branch Access Points 1 | . 1 . . . . . . . . . . . . Alert Level 1 | . . . . . 1 . . . . . . . . Unreport Threat 2 | . 1 . . . 1 . . . . . . . . Locate Traps 1 | . 1 . . . . . . . . . . . . Hauler Manifests 1 | . 1 . . . . . . . . . . . . Fabricator Hacks . | . . . . . . . . . . . . . . Repair Station Hacks . | . . . . . . . . . . . . . . Recycling Unit Hacks 2 | . . . . . . . . 2 . . . . . Retrieve Matter 2 | . . . . . . . . 2 . . . . . Scanalyzer 2 | . . . . . . . . 2 . . . . . Insert Component 1 | . . . . . . . . 1 . . . . . Analyze 1 | . . . . . . . . 1 . . . . . Garrison Access Hacks . | . . . . . . . . . . . . . . Unauthorized Hacks . | . . . . . . . . . . . . . . Terminals . | . . . . . . . . . . . . . . Fabricators . | . . . . . . . . . . . . . . Repair Stations . | . . . . . . . . . . . . . . Recycling Units . | . . . . . . . . . . . . . . Scanalyzers . | . . . . . . . . . . . . . . Garrison Access . | . . . . . . . . . . . . . . Data Cores Recovered . | . . . . . . . . . . . . . . Used . | . . . . . . . . . . . . . . Hacking Detections 20 | . 1 . . . 2 3 6 6 . . . 1 1 Full Trace Events 7 | . 1 . . . 1 . 2 2 . . . . 1 Feedback Events 1 | . . . . . . . 1 . . . . . . Corruption 1 | . . . . . . . 1 . . . . . . Feedback Blocked . | . . . . . . . . . . . . . . Robot Schematics Acquired . | . . . . . . . . . . . . . . Robots Built . | . . . . . . . . . . . . . . Authchips . | . . . . . . . . . . . . . . Time . | . . . . . . . . . . . . . . Total Robot Build Rating . | . . . . . . . . . . . . . . Part Schematics Acquired 1 | . . . . . . . . 1 . . . . . Parts Built . | . . . . . . . . . . . . . . Authchips . | . . . . . . . . . . . . . . Time . | . . . . . . . . . . . . . . Total Part Build Rating . | . . . . . . . . . . . . . . Parts Repaired . | . . . . . . . . . . . . . . Time . | . . . . . . . . . . . . . . Parts Recycled . | . . . . . . . . . . . . . . Recycled Matter . | . . . . . . . . . . . . . . Retrieved Matter . | . . . . . . . . . . . . . . Retrieved Components . | . . . . . . . . . . . . . . Parts Scanalyzed 1 | . . . . . . . . 1 . . . . . Part Schematics Acquired 1 | . . . . . . . . 1 . . . . . Parts Damaged . | . . . . . . . . . . . . . . Bothacking | -11 -10 -10 -10 -9 -8 -8 -7 -6 -5 -5 -4 -4 -3 ------------ Run | Scr Mat Min Exi Min Mat Sto Fac Fac Fac DSF Fac Ext Res Used RIF Installer . | . . . . . . . . . . . . . . Robots Hacked . | . . . . . . . . . . . . . . Non-combat . | . . . . . . . . . . . . . . Combat . | . . . . . . . . . . . . . . Robot Hacks Applied . | . . . . . . . . . . . . . . Relay Couplers Released . | . . . . . . . . . . . . . . Fabnet Peak Effective % . | . . . . . . . . . . . . . . Robots Rewired . | . . . . . . . . . . . . . . Allies Hacked . | . . . . . . . . . . . . . . Hacks Repelled . | . . . . . . . . . . . . . . Allies | -11 -10 -10 -10 -9 -8 -8 -7 -6 -5 -5 -4 -4 -3 -------- Run | Scr Mat Min Exi Min Mat Sto Fac Fac Fac DSF Fac Ext Res Total Allies 3 | . . 3 . . . . . . . . . . . Largest Group 3 | . . 3 . . . . . . . . . . . Highest-Rated Group 40 | . . 40 . . . . . . . . . . . Highest-Rated Ally 16 | . . 16 . . . . . . . . . . . Total Orders 5 | . . 3 . . . . . 2 . . . . . ROAM 2 | . . 2 . . . . . . . . . . . FOLLOW 1 | . . 1 . . . . . . . . . . . EXPLORE 1 | . . . . . . . . 1 . . . . . RETURN 1 | . . . . . . . . 1 . . . . . Ally Attacks 31 | . . 31 . . . . . . . . . . . Total Damage 307 | . . 307 . . . . . . . . . . . Kills 3 | . . 3 . . . . . . . . . . . Allies Corrupted . | . . . . . . . . . . . . . . Allies Melted . | . . . . . . . . . . . . . . Intel | -11 -10 -10 -10 -9 -8 -8 -7 -6 -5 -5 -4 -4 -3 ------- Run | Scr Mat Min Exi Min Mat Sto Fac Fac Fac DSF Fac Ext Res Robot Analysis Total . | . . . . . . . . . . . . . . Derelict Logs Recovered 3 | . . 2 . 1 . . . . . . . . . Drone Launches 14 | . . . . . . 13 . 1 . . . . . Drone Recoveries 4 | . . . . . . 3 . 1 . . . . . Exploration | -11 -10 -10 -10 -9 -8 -8 -7 -6 -5 -5 -4 -4 -3 ------------- Run | Scr Mat Min Exi Min Mat Sto Fac Fac Fac DSF Fac Ext Res Turns Passed 4634 | 47 351 689 535 92 106 159 1183 941 76 45 112 42 256 Spaces Moved 4770 | 41 242 653 560 169 163 213 832 871 124 83 256 108 455 Core 522 | 1 . . . . . 71 23 . 96 47 . . 284 Treads 17 | . . . . . . . 17 . . . . . . Legs 1253 | . . . . . . . 792 461 . . . . . Wheels 1535 | 40 242 653 560 40 . . . . . . . . . Hover . | . . . . . . . . . . . . . . Flight 1443 | . . . . 129 163 142 . 410 28 36 256 108 171 Fastest Speed 26 | 50 80 95 95 37 37 37 50 26 40 34 34 34 37 Average Speed 80 | 79 87 95 95 51 37 51 121 81 47 46 34 34 50 Slowest Speed 260 | 80 95 95 95 110 37 200 260 200 50 200 34 37 85 Overloaded Moves . | . . . . . . . . . . . . . . Propulsion Burnouts . | . . . . . . . . . . . . . . Robots Hopped 30 | . . . . . . 3 . 15 . . 6 . 6 Cave-ins Triggered . | . . . . . . . . . . . . . . Exploration Rate (%) 36 | 3 37 99 93 43 16 42 25 18 2 75 7 27 18 Regions Visited 13 Branch Regions 5 Pre-discovered Areas 2 | . . 1 . 1 . . . . . . . . . Known Exits Taken 4 | . 1 . . . . 1 . 1 1 . . . . Unknown Exits Taken 8 | 1 . 1 1 1 1 . 1 . . . 1 1 . Scrap Searched 2 | . . 2 . . . . . . . . . . . Spaces Dug 14 | . . . . . . 2 5 4 . . . . 3 Terrain Destroyed 83 | . . . . . . 2 10 68 . . . . 3 Melee 14 | . . . . . . 2 5 4 . . . . 3 Projectile 7 | . . . . . . . 1 6 . . . . . AOE 62 | . . . . . . . 4 58 . . . . . Terrain Rammed . | . . . . . . . . . . . . . . Walls Destroyed . | . . . . . . . . . . . . . . Machines Disabled . | . . . . . . . . . . . . . . Actions | -11 -10 -10 -10 -9 -8 -8 -7 -6 -5 -5 -4 -4 -3 --------- Run | Scr Mat Min Exi Min Mat Sto Fac Fac Fac DSF Fac Ext Res Total 5371 | 53 323 708 562 173 209 257 951 1057 140 86 274 112 466 Wait 351 | . 41 36 . . 39 18 40 140 7 . 25 5 . Move 4701 | 40 241 652 559 168 162 206 831 843 123 82 243 107 444 Hop 26 | . . . . . . 3 . 12 . . 6 . 5 Pick Up 35 | 8 6 5 1 . 3 1 9 2 . . . . . Fast Attach 53 | 4 1 . . . 1 7 18 13 . 4 . . 5 Attach 15 | 1 1 . . 3 1 2 4 3 . . . . . Detach 12 | . . . . . 1 3 3 5 . . . . . Swap 6 | . 1 1 1 . . . 3 . . . . . . Drop 41 | . 3 6 1 1 2 8 6 14 . . . . . Fire 86 | . 29 8 . . . . 28 21 . . . . . Melee 15 | . . . . . . 2 6 4 . . . . 3 Ram 27 | . . . . 1 . 7 . . 10 . . . 9 Kick 1 | . . . . . . . 1 . . . . . . Crush . | . . . . . . . . . . . . . . Escape Stasis . | . . . . . . . . . . . . . . Rewire 2 | . . . . . . . 2 . . . . . . Trap . | . . . . . . . . . . . . . . Miscellaneous . | . . . . . . . . . . . . . . Route ------- -11/Scrapyard -10/Materials (discovered 3 exits: [*Mat] / *Min x2) -10/Mines (discovered 3 exits: [*Mat x2] / *Exi) -10/Exiles (discovered 2 exits: [*Min x2]) -9/Mines -8/Materials -8/Storage -7/Factory -6/Factory (discovered 4 exits: *Fac x4) -5/Factory -5/DSF -4/Factory -4/Extension -3/Research (discovered 3 exits: Res x3) History --------- Turn | Location | Event 10 | -11/Scrapyard | Discovered new exit (range 15) 48 | -11/Scrapyard | Entered Materials 265 | -10/Materials | Identified exit to Mines 303 | -10/Materials | Build established: Mutant 362 | -10/Materials | Discovered new exit (range 7) 399 | -10/Materials | Entered Mines 418 | -10/Mines | A weapon hastily lodged in a ceiling crevice suddenly fell to the ground 454 | -10/Mines | Assisted by bots powering up and referring to "LRC-V3" 550 | -10/Mines | Discovered new exit (range 12) 611 | -10/Mines | Learned location of Zion (-6) 789 | -10/Mines | Learned Materials stockpile data 907 | -10/Mines | Discovered new exit (range 9) 949 | -10/Mines | Deemed a non-threat by the Exiles lab entrance 949 | -10/Mines | Discovered new exit (range 5) 1046 | -10/Mines | Met a Derelict shopkeep closing up shop 1088 | -10/Mines | Entered Exiles 1101 | -10/Exiles | Discovered new exit (range 15) 1132 | -10/Exiles | Met 8R-AWN 1147 | -10/Exiles | Met EX-HEX 1173 | -10/Exiles | Met EX-BIN 1186 | -10/Exiles | Aligned with FarCom system 1187 | -10/Exiles | Given EX-Vault access code 1224 | -10/Exiles | Opened EX-Vault 1230 | -10/Exiles | Found Prototype Device 1246 | -10/Exiles | Identified Skeleton Box 1251 | -10/Exiles | Warned to stay clear of 0b10 Research branches 1278 | -10/Exiles | Met EX-DEC 1325 | -10/Exiles | Discovered new exit (range 11) 1399 | -10/Exiles | Visited The Gauntlet 1623 | -10/Exiles | Left Exiles lab with Skeleton Box 1623 | -10/Exiles | Entered Mines 1624 | -9/Mines | Assembled infested the area 1672 | -9/Mines | Core integrity fell below 50% 1674 | -9/Mines | Core integrity fell below 20% 1702 | -9/Mines | Lost 5 parts (1p2n2w) 1714 | -9/Mines | Discovered new exit (range 5) 1715 | -9/Mines | Entered Materials 1715 | -8/Materials | Evolved 4 slots: Propulsion x2, Utility x2 1778 | -8/Materials | Discovered new exit (range 8) 1821 | -8/Materials | Entered Storage 1868 | -8/Storage | Identified exit to Factory 1884 | -8/Storage | Remotely autohacked Sealed Heavy Doors 1946 | -8/Storage | Lost 4 parts (1p2n1u) 1970 | -8/Storage | Core integrity fell below 50% 1980 | -8/Storage | Entered Factory 1980 | -7/Factory | Evolved 2 slots: Propulsion x1, Utility x1 2650 | -7/Factory | Lost 3 parts (3n) 2960 | -7/Factory | Build established: Scavenger-Mutant 3158 | -7/Factory | Discovered new exit (range 4) 3163 | -7/Factory | Entered another Factory area 3163 | -6/Factory | Evolved 2 slots: Utility x1, Weapon x1 3559 | -6/Factory | Central database locked down 3974 | -6/Factory | Lost 11 parts (1p7n1u2w) 4016 | -6/Factory | Core integrity fell below 50% 4029 | -6/Factory | Identified exit to Factory 4031 | -6/Factory | Noticed a derelict Sapper rigging charges 4076 | -6/Factory | Lost 3 parts (3n) 4104 | -6/Factory | Entered another Factory area 4104 | -5/Factory | Evolved 2 slots: Propulsion x1, Utility x1 4180 | -5/Factory | Identified exit to DSF 4180 | -5/Factory | Entered DSF 4202 | -5/DSF | Additional patrols routed to DSF 4220 | -5/DSF | Discovered new exit (range 15) 4225 | -5/DSF | Entered Factory 4225 | -4/Factory | Evolved 2 slots: Propulsion x1, Utility x1 4309 | -4/Factory | Build established: Mutant 4336 | -4/Factory | Discovered new exit (range 6) 4337 | -4/Factory | Entered Extension 4369 | -4/Extension | Spotted B-86 Titan 4374 | -4/Extension | Spotted B-86 Titan 4378 | -4/Extension | Discovered new exit (range 3) 4379 | -4/Extension | Entered Research 4379 | -3/Research | Evolved 2 slots: Propulsion x1, Utility x1 4470 | -3/Research | Spotted B-86 Titan 4494 | -3/Research | Lost 4 parts (1p3n) 4508 | -3/Research | Identified exit to Research 4517 | -3/Research | Core integrity fell below 50% 4602 | -3/Research | Core integrity fell below 20% 4635 | -3/Research | Destroyed by S-43 Plague with Heavy Machine Gun Last Messages --------------- 04517_ Penetrated by Slug. 04520_ Slug penetrates Wall. 04521_ Penetrated by Slug. 04524_ Slammed into K-01 Serf. 04530_ System corrupted: IFF burst signal emitted. 04547_ Acquired Lance. 04568_ Slug penetrates Wall. 04573_ O-32 Director: "IFF HANDSHAKE FAILED. SECURING TERMINAL." 04579_ ALERT: Hostiles spotted, dispatching reinforcements to Terminal R004. 04582_ W-44 Eye sends out distress signal. 04585_ K-01 Serf cleans the Field Manipulator. 04587_ K-01 Serf cleans the Fabricator. 04596_ W-44 Eye sends out distress signal. 04600_ Acquired Impulse Thruster Array. 04610_ Acquired Prototype Treads. 04610_ Identified Centrium Heavy Treads. 04616_ P-80 Master resets S-43 Plague, system corruption cleaned. 04616_ S-43 Plague destroyed. 04632_ System corrupted: Centrium Heavy Treads rejected. Map ----- +----------------------------------------------------+ | ???????????### # #?????? | | ????????? """" + "" "" ???????? | | ??????????#### """" # ""S"" ???????? | | ?????????????# """" # """" ???????? | | ????########?# """" # ??????? | | ???# ! ?# """" # #?????? | | ????? # ###########?????? | | ???????""" # #???????????????? | | ???????""" + #???????????????? | | ???????""" # ########???????????????? | | ?????????????# #??##########??????????? | | ?????????????# #? T #????????? | | ?????????????# ps #? #????????? | | ?????????????# ss# !#????????? | | ?????????????# # #????????? | | ?????????????# " #????????? | | ?????????????# # #????????? | | ?????????????# #############??????????? | | ?????????????# #? ?????????????? | | ?????????????# =#? ??????????????? | | ?????????????# # """"???????????????? | | ?????????????# # """" ??????????????? | | ?????????????+ s ; """" ??????????????? | | ?????????????# # """" ??????????????? | | ?????????????# s # ?????????????? | | ?????????????# @#? #????????????? | | ?????????????# #?#########????????????? | | ?????????????# s #??????????????????????? | | ?????????????# #??????????????????????? | | ?????????????# #??????????????????????? | | ?????????????# #??????????????????????? | | ?????????????# #??????????????????????? | | ?????????????# #??????????????????????? | | ?????????????# ??????????????????????? | | ?????????????# ??????????????????????? | | ?????????????# ??????????????????????? | | ?????????????+ ??????????????????????? | | ?????????????# #??????????????????????? | | ?????????????# ???????????????????????? | | ?????????????# ???????????????????????? | | ??????????????? ???????????????????????? | | ?????????????????????????????????????????? | | ?????????????